bitfinex/quotes_BTCUSD_20230109
["timestamp","ask_amount","ask_price","bid_price","bid_amount"]
[1673234826156,2.55725948,17202.0,17201.0,0.37144106]
[1673234826656,2.55725948,17202.0,17201.0,0.23344106]
[1673234826929,2.55725948,17202.0,17201.0,0.37144106]
[1673234827184,2.55725948,17202.0,17201.0,0.23344106]
[1673234827432,2.55725948,17202.0,17201.0,0.37144106]
[1673234827971,2.55725948,17202.0,17201.0,0.3713537]
[1673234828255,2.55725948,17202.0,17201.0,0.2333537]
[1673234828507,2.56025948,17202.0,17201.0,0.3713537]
[1673234828755,2.56025948,17202.0,17201.0,0.2333537]
[1673234828756,2.55725948,17202.0,17201.0,0.2333537]
[1673234829027,2.56225948,17202.0,17201.0,0.3593537]
[1673234829829,2.55725948,17202.0,17201.0,0.2333537]
[1673234830076,2.56225948,17202.0,17201.0,0.3593537]
[1673234831916,2.55725948,17202.0,17201.0,0.2333537]
[1673234832161,2.56025948,17202.0,17201.0,0.3713537]
[1673234832413,2.55725948,17202.0,17201.0,0.2333537]
[1673234832670,2.56025948,17202.0,17201.0,0.3713537]
[1673234832922,2.55725948,17202.0,17201.0,0.2333537]
[1673234833173,2.56125948,17202.0,17201.0,0.3693537]
[1673234833470,2.55725948,17202.0,17201.0,0.2333537]
[1673234833668,2.56225948,17202.0,17201.0,0.3583537]
[1673234834446,2.55725948,17202.0,17201.0,0.2333537]
[1673234834704,2.56225948,17202.0,17201.0,0.3643537]
[1673234834957,2.56225948,17202.0,17201.0,0.2333537]
[1673234835220,2.56725948,17202.0,17201.0,0.3643537]
[1673234835472,2.56225948,17202.0,17201.0,0.2333537]
[1673234835728,2.56325948,17202.0,17201.0,0.3713537]
[1673234836407,2.55725948,17202.0,17201.0,0.2333537]
[1673234838613,2.55925948,17202.0,17201.0,0.3713537]
[1673234839044,2.92332748,17202.0,17201.0,0.3713537]
[1673234839309,2.55925948,17202.0,17201.0,0.3713537]
[1673234840509,2.92332748,17202.0,17201.0,0.3713537]
[1673234840747,2.55925948,17202.0,17201.0,0.3713537]
[1673234841231,3.40664142,17202.0,17201.0,0.3713537]
[1673234841494,3.70301831,17202.0,17201.0,0.3713537]
[1673234841739,3.04257342,17202.0,17201.0,0.3713537]
[1673234846968,3.21167342,17202.0,17201.0,0.3713537]
[1673234847219,3.57574142,17202.0,17201.0,0.3713537]
[1673234847459,3.21167342,17202.0,17201.0,0.3713537]
[1673234847712,3.20967342,17202.0,17201.0,0.2333537]
[1673234847965,3.9932896,17202.0,17201.0,0.2333537]
[1673234848210,3.6322216,17202.0,17201.0,0.3713537]
[1673234848437,3.9962896,17202.0,17201.0,0.2333537]
[1673234848704,3.9932896,17202.0,17201.0,0.2333537]
[1673234848953,3.6292216,17202.0,17201.0,0.2333537]
[1673234849463,3.9932896,17202.0,17201.0,0.2333537]
[1673234849718,3.9962896,17202.0,17201.0,0.3713537]
[1673234849971,3.57674142,17202.0,17201.0,0.3713537]
[1673234851202,3.57674142,17202.0,17201.0,0.37128424]
[1673234851447,3.21267342,17202.0,17201.0,0.37128424]
[1673234851978,3.57674142,17202.0,17201.0,0.37128424]
[1673234852227,3.21267342,17202.0,17201.0,0.37128424]
[1673234852665,3.57674142,17202.0,17201.0,0.37128424]
[1673234858843,4.13725299,17202.0,17201.0,0.37128424]
[1673234859338,3.57674142,17202.0,17201.0,0.37128424]
[1673234859832,3.51875142,17202.0,17201.0,0.37128424]
[1673234860607,3.51875142,17202.0,17201.0,0.23328424]
[1673234860608,3.51575142,17202.0,17201.0,0.23328424]
[1673234860865,3.51575142,17202.0,17201.0,0.37128424]
[1673234861109,3.51575142,17202.0,17201.0,0.23328424]
[1673234861353,3.51575142,17202.0,17201.0,0.37128424]
[1673234862368,3.51575142,17202.0,17201.0,0.23328424]
[1673234862617,3.51675142,17202.0,17201.0,0.37128424]
[1673234862831,3.51575142,17202.0,17201.0,0.23328424]
[1673234863131,3.51775142,17202.0,17201.0,0.37128424]
[1673234864934,3.03443748,17202.0,17201.0,0.37128424]
[1673234865183,2.67036948,17202.0,17201.0,0.37128424]
[1673234865942,2.66836948,17202.0,17201.0,0.23328424]
[1673234866193,3.03243748,17202.0,17201.0,0.37128424]
[1673234866457,3.03243748,17202.0,17201.0,0.23328424]
[1673234866712,3.03243748,17202.0,17201.0,0.37128424]
[1673234867191,2.86333748,17202.0,17201.0,0.37128424]
[1673234867438,2.98075134,17202.0,17201.0,0.23328424]
[1673234867668,2.98075134,17202.0,17201.0,0.37128424]
[1673234868822,2.49926948,17202.0,17201.0,0.23328424]
[1673234869264,2.50026948,17202.0,17201.0,0.37128424]
[1673234869271,2.50026948,17202.0,17201.0,0.23328424]
[1673234869519,2.50126948,17202.0,17201.0,0.37128424]
[1673234869766,2.49926948,17202.0,17201.0,0.23328424]
[1673234870024,2.50126948,17202.0,17201.0,0.37128424]
[1673234870545,2.49926948,17202.0,17201.0,0.37128424]
[1673234871558,2.49926948,17202.0,17201.0,0.23328424]
[1673234871799,2.50026948,17202.0,17201.0,0.37128424]
[1673234872056,2.49926948,17202.0,17201.0,0.23328424]
[1673234872329,2.50026948,17202.0,17201.0,0.37128424]
[1673234872563,2.50026948,17202.0,17201.0,0.23328424]
[1673234872843,2.50126948,17202.0,17201.0,0.37128424]
[1673234873093,2.49926948,17202.0,17201.0,0.23328424]
[1673234873351,2.50026948,17202.0,17201.0,0.37128424]
[1673234873616,2.49926948,17202.0,17201.0,0.23328424]
[1673234874209,2.98075134,17202.0,17201.0,0.23328424]
[1673234874463,2.98675134,17202.0,17201.0,0.35028424]
[1673234874978,2.27817948,17202.0,17201.0,0.35028424]
[1673234875228,2.27217948,17202.0,17201.0,0.23328424]
[1673234876003,2.27317948,17202.0,17201.0,0.23328424]
[1673234876265,2.27217948,17202.0,17201.0,0.23328424]
[1673234876509,2.27217948,17202.0,17201.0,0.37128424]
[1673234876510,2.27317948,17202.0,17201.0,0.37128424]
[1673234877279,2.27217948,17202.0,17201.0,0.23328424]
[1673234877538,2.27217948,17202.0,17201.0,0.37128424]
[1673234879960,2.27217948,17202.0,17201.0,0.23328424]
[1673234880206,2.27217948,17202.0,17201.0,0.37128424]
[1673234880971,2.75183838,17202.0,17201.0,0.37128424]
[1673234881472,2.74859838,17202.0,17201.0,0.23328424]
[1673234881732,2.74959838,17202.0,17201.0,0.37128424]
[1673234881991,2.74859838,17202.0,17201.0,0.23328424]
[1673234883299,2.75059838,17202.0,17201.0,0.37128424]
[1673234883540,2.74859838,17202.0,17201.0,0.23328424]
[1673234883775,2.27093948,17202.0,17201.0,0.37128424]
[1673234884010,2.27093948,17202.0,17201.0,0.23328424]
[1673234884245,2.27293948,17202.0,17201.0,0.37128424]
[1673234884514,2.26893948,17202.0,17201.0,0.23328424]
[1673234884758,2.27093948,17202.0,17201.0,0.37128424]
[1673234884998,2.27093948,17202.0,17201.0,0.23328424]
[1673234885260,2.27293948,17202.0,17201.0,0.37128424]
[1673234886566,2.26893948,17202.0,17201.0,0.23328424]
[1673234886862,2.27093948,17202.0,17201.0,0.37128424]
[1673234887044,2.26893948,17202.0,17201.0,0.23337613]
[1673234887285,2.27093948,17202.0,17201.0,0.37128424]
[1673234887519,2.27093948,17202.0,17201.0,0.23328424]
[1673234887520,2.26893948,17202.0,17201.0,0.23328424]
[1673234887789,2.27093948,17202.0,17201.0,0.37128424]
[1673234888038,2.26893948,17202.0,17201.0,0.23328424]
[1673234888284,2.27093948,17202.0,17201.0,0.37128424]
[1673234888764,2.63500748,17202.0,17201.0,0.37128424]
[1673234889002,2.27093948,17202.0,17201.0,0.37128424]
[1673234889977,2.26893948,17202.0,17201.0,0.37128424]
[1673234890216,2.26893948,17202.0,17201.0,0.23328424]
[1673234890460,2.26893948,17202.0,17201.0,0.37128424]
[1673234890716,2.26893948,17202.0,17201.0,0.23328424]
[1673234890946,2.26893948,17202.0,17201.0,0.37128424]
[1673234891203,2.26893948,17202.0,17201.0,0.23328424]
[1673234891468,2.26893948,17202.0,17201.0,0.37128424]
[1673234894826,2.26893948,17202.0,17201.0,0.23328424]
[1673234895043,2.26893948,17202.0,17201.0,0.37128424]
[1673234895328,2.26893948,17202.0,17201.0,0.23328424]
[1673234896297,2.26893948,17202.0,17201.0,0.23337613]
[1673234896560,2.26893948,17202.0,17201.0,0.37137613]
[1673234896812,2.26893948,17202.0,17201.0,0.23337613]
[1673234897557,2.27093948,17202.0,17201.0,0.37137613]
[1673234897810,1.58811955,17202.0,17201.0,0.23337613]
[1673234898081,1.04886877,17202.0,17201.0,1.17879113]
[1673234898331,1.05086877,17202.0,17201.0,2.3435617]
[1673234898594,1.05086877,17202.0,17201.0,2.7435617]
[1673234898855,1.05086877,17202.0,17201.0,2.27499216]
[1673234899123,1.04886877,17202.0,17201.0,2.13699216]
[1673234899352,1.04986877,17202.0,17201.0,2.27499216]
[1673234899606,1.04886877,17202.0,17201.0,2.13699216]
[1673234899849,1.04986877,17202.0,17201.0,2.27499216]
[1673234901118,1.04986877,17202.0,17201.0,1.91093816]
[1673234901626,1.04986877,17202.0,17201.0,1.51084627]
[1673234902365,1.04986877,17202.0,17201.0,1.91084627]
[1673234903865,1.04986877,17202.0,17201.0,1.91104077]
[1673234904351,1.04986877,17202.0,17201.0,2.27509477]
[1673234905341,1.04986877,17202.0,17201.0,1.91104077]
[1673234905612,1.04986877,17202.0,17201.0,2.27509477]
[1673234906067,1.04986877,17202.0,17201.0,1.91104077]
[1673234906288,1.04886877,17202.0,17201.0,1.77304077]
[1673234906533,1.04886877,17202.0,17201.0,1.91104077]
[1673234907303,1.04875912,17202.0,17201.0,2.27509477]
[1673234907791,1.04875912,17202.0,17201.0,1.91104077]
[1673234907998,1.04875912,17202.0,17201.0,2.27509477]
[1673234908237,1.04875912,17202.0,17201.0,1.91104077]
[1673234908483,1.04875912,17202.0,17201.0,2.27509477]
[1673234908991,1.04875912,17202.0,17201.0,2.13709477]
[1673234909282,1.04875912,17202.0,17201.0,1.91104077]
[1673234909527,1.04875912,17202.0,17201.0,2.27509477]
[1673234909772,1.04875912,17202.0,17201.0,1.77304077]
[1673234910268,1.04875912,17202.0,17201.0,2.27509477]
[1673234910541,1.04875912,17202.0,17201.0,2.27490027]
[1673234910788,1.04875912,17202.0,17201.0,1.91084627]
[1673234911039,1.04875912,17202.0,17201.0,2.13690027]
[1673234911549,1.04875912,17202.0,17201.0,1.17869924]
[1673234911801,1.04875912,17202.0,17201.0,0.95264524]
[1673234912057,1.04875912,17202.0,17201.0,0.81464524]
[1673234912799,1.04875912,17202.0,17201.0,0.95264524]
[1673234914029,1.04875912,17202.0,17201.0,0.37128424]
[1673234914261,1.04875912,17202.0,17201.0,0.233857]
[1673234914508,1.04875912,17202.0,17201.0,0.73533824]
[1673234915737,1.04875912,17202.0,17201.0,0.59733824]
[1673234915973,1.04875912,17202.0,17201.0,0.73533824]
[1673234917344,1.04875912,17202.0,17201.0,0.37128424]
[1673234919702,1.01748912,17202.0,17201.0,0.77128424]
[1673234920973,1.01748912,17202.0,17201.0,0.37128424]
[1673234922970,1.46769192,17202.0,17201.0,0.37128424]
[1673234929354,1.46769192,17202.0,17201.0,0.23328424]
[1673234929602,1.46869192,17202.0,17201.0,0.37128424]
[1673234931127,2.02770457,17202.0,17201.0,0.37128424]
[1673234931415,2.67207827,17202.0,17201.0,0.37128424]
[1673234932098,2.67107827,17202.0,17201.0,0.23328424]
[1673234932351,2.64080827,17202.0,17201.0,0.37128424]
[1673234935019,3.00487627,17202.0,17201.0,0.37128424]
[1673234935286,2.64080827,17202.0,17201.0,0.37128424]
[1673234935779,3.00487627,17202.0,17201.0,0.37128424]
[1673234936045,2.64080827,17202.0,17201.0,0.37128424]
[1673234936278,2.64064625,17202.0,17201.0,0.37128424]
[1673234937025,3.00471425,17202.0,17201.0,0.37128424]
[1673234937266,2.16487255,17202.0,17201.0,0.37128424]
[1673234938243,2.63858525,17202.0,17201.0,0.37128424]
[1673234939705,3.00265325,17202.0,17201.0,0.37128424]
[1673234939938,2.63858525,17202.0,17201.0,0.37128424]
[1673234942187,3.42513928,17202.0,17201.0,0.37128424]
[1673234942432,4.01908695,17202.0,17201.0,0.37128424]
[1673234942672,4.96348195,17202.0,17201.0,0.23328424]
[1673234942915,4.95384033,17202.0,17201.0,0.37128424]
[1673234944412,4.95184033,17202.0,17201.0,0.23328424]
[1673234944647,4.95384033,17202.0,17201.0,0.37128424]
[1673234944891,4.95184033,17202.0,17201.0,0.23328424]
[1673234945649,4.95384033,17202.0,17201.0,0.37128424]
[1673234945884,4.95184033,17202.0,17201.0,0.23328424]
[1673234948046,4.95384033,17202.0,17201.0,0.37128424]
[1673234948291,4.95184033,17202.0,17201.0,0.23328424]
[1673234948531,4.95384033,17202.0,17201.0,0.37128424]
[1673234948824,4.95184033,17202.0,17201.0,0.23328424]
[1673234949076,4.95384033,17202.0,17201.0,0.37128424]
[1673234949302,4.95184033,17202.0,17201.0,0.23328424]
[1673234949520,4.95384033,17202.0,17201.0,0.37128424]
[1673234950509,4.95184033,17202.0,17201.0,0.23328424]
[1673234950752,4.95384033,17202.0,17201.0,0.37128424]
[1673234950996,4.95384033,17202.0,17201.0,0.23328424]
[1673234951206,4.95584033,17202.0,17201.0,0.37128424]
[1673234951709,4.95184033,17202.0,17201.0,0.23328424]
[1673234951958,4.95384033,17202.0,17201.0,0.37128424]
[1673234952446,4.58977233,17202.0,17201.0,0.37128424]
[1673234953487,4.58977233,17202.0,17201.0,0.23328424]
[1673234953488,4.58777233,17202.0,17201.0,0.23328424]
[1673234953974,4.95184033,17202.0,17201.0,0.23328424]
[1673234954718,4.95384033,17202.0,17201.0,0.42927424]
[1673234954974,4.95184033,17202.0,17201.0,0.29127424]
[1673234955232,4.95384033,17202.0,17201.0,0.42927424]
[1673234955735,4.29933555,17202.0,17201.0,0.42927424]
[1673234956259,4.29733555,17202.0,17201.0,0.29127424]
[1673234957004,4.29933555,17202.0,17201.0,0.42927424]
[1673234963004,4.66340355,17202.0,17201.0,0.42927424]
[1673234963250,4.29933555,17202.0,17201.0,0.42927424]
[1673234963738,4.66340355,17202.0,17201.0,0.42927424]
[1673234964008,4.29933555,17202.0,17201.0,0.42927424]
[1673234965454,4.66340355,17202.0,17201.0,0.42927424]
[1673234965707,4.29933555,17202.0,17201.0,0.42927424]
[1673234966204,4.66340355,17202.0,17201.0,0.42927424]
[1673234966445,4.29933555,17202.0,17201.0,0.42927424]
[1673234967211,4.66340355,17202.0,17201.0,0.42927424]
[1673234967454,4.29933555,17202.0,17201.0,0.42927424]
[1673234967949,4.66340355,17202.0,17201.0,0.42927424]
[1673234968163,4.46843555,17202.0,17201.0,0.42927424]
[1673234968676,5.13599603,17202.0,17201.0,0.42927424]
[1673234968896,4.77192803,17202.0,17201.0,0.42927424]
[1673234969179,4.1780509,17202.0,17201.0,0.42927424]
[1673234970670,4.5421189,17202.0,17201.0,0.42927424]
[1673234970918,4.1780509,17202.0,17201.0,0.42927424]
[1673234971404,4.5421189,17202.0,17201.0,0.42927424]
[1673234972402,4.3730189,17202.0,17201.0,0.42927424]
[1673234976704,4.7121086,17202.0,17201.0,0.42927424]
[1673234978175,4.3730189,17202.0,17201.0,0.42927424]
[1673234981795,4.08261871,17202.0,17201.0,0.42927424]
[1673234995431,4.38261871,17202.0,17201.0,0.42927424]
[1673234995692,4.08261871,17202.0,17201.0,0.42927424]
[1673234996422,4.07761871,17202.0,17201.0,0.42927424]
[1673234998422,4.37761871,17202.0,17201.0,0.42927424]
[1673234999520,4.08720324,17202.0,17201.0,0.42927424]
[1673234999763,3.78720324,17202.0,17201.0,0.42927424]
[1673235002985,3.78720324,17202.0,17201.0,0.42427424]
[1673235008224,3.60768837,17202.0,17201.0,0.42427424]
[1673235012469,3.31727394,17202.0,17201.0,0.42427424]
[1673235025351,3.02687741,17202.0,17201.0,0.42427424]
[1673235027445,2.88690935,17202.0,17201.0,0.42427424]
[1673235027704,3.20822367,17202.0,17201.0,0.42427424]
[1673235033386,3.20822367,17202.0,17201.0,0.42334477]
[1673235037888,3.35886586,17202.0,17201.0,0.42334477]
[1673235038127,3.06847037,17202.0,17201.0,0.42334477]
[1673235039392,2.59651386,17202.0,17201.0,0.42334477]
[1673235039644,2.59651386,17202.0,17201.0,0.40834477]
[1673235039645,2.06334586,17202.0,17201.0,0.40834477]
[1673235039890,2.46334586,17202.0,17201.0,0.40834477]
[1673235043386,2.5789892,17202.0,17201.0,0.40834477]
[1673235043980,3.05172864,17202.0,17201.0,0.40834477]
[1673235044189,3.41579664,17202.0,17201.0,0.40834477]
[1673235044435,2.9430572,17202.0,17201.0,0.40834477]
[1673235044677,2.5789892,17202.0,17201.0,0.40834477]
[1673235047910,3.05163179,17202.0,17201.0,0.40834477]
[1673235048131,3.41569979,17202.0,17201.0,0.40834477]
[1673235048603,3.92888341,17202.0,17201.0,0.40834477]
[1673235049122,3.41569979,17202.0,17201.0,0.40834477]
[1673235049827,2.9430572,17202.0,17201.0,0.40834477]
[1673235050310,2.5789892,17202.0,17201.0,0.40834477]
[1673235051046,2.28859502,17202.0,17201.0,0.40834477]
[1673235051554,2.76172794,17202.0,17201.0,0.40834477]
[1673235053113,4.18731656,17202.0,17196.0,0.17890105]
[1673235053362,0.9601,17200.0,17197.0,0.05799]
[1673235053625,4.66968828,17199.0,17197.0,0.05814]
[1673235053872,1.94326673,17198.0,17197.0,0.05814]
[1673235054126,3.44399073,17198.0,17197.0,0.05814]
[1673235054395,3.61972255,17198.0,17197.0,0.00015]
[1673235054663,3.61972255,17198.0,17197.0,0.30814]
[1673235054924,3.91972255,17198.0,17197.0,0.34314]
[1673235055483,3.91972255,17198.0,17197.0,0.30799]
[1673235055741,3.93272255,17198.0,17197.0,0.34299]
[1673235055988,4.59516631,17198.0,17197.0,0.34299]
[1673235061358,4.11943449,17198.0,17197.0,0.34299]
[1673235062578,4.41943449,17198.0,17197.0,0.34299]
[1673235063339,4.11943449,17198.0,17197.0,0.34299]
[1673235063842,4.41943449,17198.0,17197.0,0.34299]
[1673235064343,3.82897392,17198.0,17197.0,0.34299]
[1673235065070,4.12897392,17198.0,17197.0,0.34299]
[1673235065319,3.82897392,17198.0,17197.0,0.34299]
[1673235065804,4.12897392,17198.0,17197.0,0.34299]
[1673235067530,3.82897392,17198.0,17197.0,0.34299]
[1673235068072,3.8295291,17198.0,17197.0,0.34299]
[1673235068580,3.3593662,17198.0,17197.0,0.34299]
[1673235069835,3.8295291,17198.0,17197.0,0.34299]
[1673235070344,3.3593662,17198.0,17197.0,0.34299]
[1673235071103,3.24372286,17198.0,17197.0,0.34299]
[1673235071611,3.35938753,17198.0,17197.0,0.34299]
[1673235072122,3.82955043,17198.0,17197.0,0.34299]
[1673235072902,4.12955043,17198.0,17197.0,0.34299]
[1673235073125,3.82955043,17198.0,17197.0,0.34299]
[1673235074134,4.00832736,17198.0,17197.0,0.34299]
[1673235074413,3.82955043,17198.0,17197.0,0.34299]
[1673235074897,3.66045043,17198.0,17197.0,0.34299]
[1673235077083,3.66046645,17198.0,17197.0,0.34299]
[1673235077343,2.67462286,17198.0,17197.0,0.34299]
[1673235077589,2.74824233,17198.0,17197.0,0.34299]
[1673235080936,2.08579857,17198.0,17197.0,0.34299]
[1673235081191,0.013,17198.0,17197.0,0.34299]
[1673235081450,0.013,17198.0,17197.0,0.707069]
[1673235081724,0.013,17198.0,17197.0,0.34299]
[1673235081960,0.013,17198.0,17197.0,0.74299]
[1673235082709,0.013,17198.0,17197.0,0.707069]
[1673235083492,0.013,17198.0,17197.0,0.64299]
[1673235083767,0.013,17198.0,17197.0,0.39299]
[1673235084026,0.013,17198.0,17197.0,0.757069]
[1673235084543,0.013,17198.0,17197.0,0.39299]
[1673235084796,0.013,17198.0,17197.0,0.09299]
[1673235090631,1.78479387,17199.0,17197.0,0.49299]
[1673235090893,2.18879799,17199.0,17197.0,0.49299]
[1673235091137,0.364079,17198.0,17197.0,0.49299]
[1673235091386,2.47314362,17199.0,17197.0,0.49299]
[1673235091883,2.47314362,17199.0,17197.0,0.09299]
[1673235092129,0.364079,17198.0,17197.0,0.09299]
[1673235092379,0.364079,17198.0,17197.0,0.05799]
[1673235092380,0.11574075,17198.0,17197.0,0.05799]
[1673235092640,0.11574075,17198.0,17197.0,0.10199]
[1673235093158,0.88216072,17199.0,17197.0,1.17639979]
[1673235093445,0.86916072,17199.0,17198.0,0.422069]
[1673235093704,0.86916072,17199.0,17198.0,0.05799]
[1673235093946,0.40400412,17199.0,17198.0,0.45799]
[1673235094459,0.76808312,17199.0,17198.0,0.45799]
[1673235094692,0.40400412,17199.0,17198.0,0.05799]
[1673235095374,0.41700412,17199.0,17198.0,0.10199]
[1673235095852,0.41700412,17199.0,17198.0,0.50199]
[1673235096123,0.41700412,17199.0,17198.0,0.10199]
[1673235096380,0.78108312,17199.0,17198.0,0.10199]
[1673235096625,0.41700412,17199.0,17198.0,0.10199]
[1673235096875,0.53275839,17199.0,17198.0,0.10199]
[1673235098139,0.41700412,17199.0,17198.0,0.50199]
[1673235098420,0.013,17199.0,17198.0,0.50199]
[1673235099919,0.013,17199.0,17198.0,0.866069]
[1673235100176,0.013,17199.0,17198.0,0.50199]
[1673235100928,0.013,17199.0,17198.0,0.866069]
[1673235101430,0.013,17199.0,17198.0,0.50199]
[1673235102242,0.013,17199.0,17198.0,0.866069]
[1673235103637,1.56524362,17201.0,17200.0,0.05799]
[1673235103868,0.11577312,17201.0,17200.0,0.05799]
[1673235104092,0.581357,17202.0,17200.0,0.22709]
[1673235104536,0.98485406,17202.0,17200.0,0.22709]
[1673235104746,1.10062718,17202.0,17200.0,0.22709]
[1673235104959,1.10062718,17202.0,17200.0,0.36509]
[1673235105185,1.10062718,17202.0,17200.0,0.62709]
[1673235105406,0.98485406,17202.0,17200.0,0.62709]
[1673235105620,0.98485406,17202.0,17200.0,0.76509]
[1673235105891,0.98485406,17202.0,17200.0,1.32136488]
[1673235106313,1.38485406,17202.0,17200.0,1.32136488]
[1673235106756,0.364079,17201.0,17200.0,1.32136488]
[1673235106964,1.50064821,17202.0,17200.0,1.32136488]
[1673235107183,0.40349706,17202.0,17201.0,0.6768091]
[1673235107399,0.40349706,17202.0,17201.0,0.9768091]
[1673235108481,0.40349706,17202.0,17201.0,0.35799]
[1673235108736,0.40349706,17202.0,17201.0,0.49599]
[1673235110041,0.40349706,17202.0,17201.0,0.19599]
[1673235115646,0.40349706,17202.0,17201.0,0.19656276]
[1673235116903,0.113159,17202.0,17201.0,0.05856276]
[1673235117656,0.113159,17202.0,17201.0,0.05799]
[1673235117908,0.114159,17202.0,17201.0,0.19599]
[1673235118160,0.113159,17202.0,17201.0,0.05799]
[1673235118409,0.114159,17202.0,17201.0,0.19599]
[1673235120127,0.22982091,17202.0,17201.0,0.19599]
[1673235120605,0.114159,17202.0,17201.0,0.19599]
[1673235122892,0.22985848,17202.0,17201.0,0.19599]
[1673235123137,0.114159,17202.0,17201.0,0.19599]
[1673235124382,0.114159,17202.0,17201.0,0.560069]
[1673235124627,0.114159,17202.0,17201.0,0.19599]
[1673235128139,0.114159,17202.0,17201.0,0.560069]
[1673235128659,0.114159,17202.0,17201.0,0.19599]
[1673235129425,0.001,17202.0,17201.0,0.19599]
[1673235129917,1.00006539,17203.0,17201.0,0.59599]
[1673235130135,1.11305541,17203.0,17201.0,0.59599]
[1673235130648,1.11305541,17203.0,17201.0,0.45799]
[1673235130873,1.11305541,17203.0,17201.0,0.05799]
[1673235131115,0.364079,17202.0,17201.0,0.05799]
[1673235131368,0.22871594,17203.0,17201.0,0.67204651]
[1673235131619,0.11299002,17203.0,17202.0,0.422069]
[1673235131860,0.11299002,17203.0,17202.0,0.05799]
[1673235132099,0.11299002,17203.0,17202.0,0.45799]
[1673235132612,1.21402011,17204.0,17202.0,1.23089191]
[1673235132613,0.00562711,17204.0,17202.0,1.23089191]
[1673235134374,0.00562711,17204.0,17203.0,0.56691068]
[1673235138662,0.00562711,17204.0,17203.0,0.73601068]
[1673235138917,0.00562711,17204.0,17203.0,1.10008968]
[1673235139166,0.00562711,17204.0,17203.0,1.68138268]
[1673235139669,0.00562711,17204.0,17203.0,1.753755]
[1673235139928,0.00693693,17205.0,17203.0,3.09808081]
[1673235140175,0.00693693,17205.0,17204.0,1.157553]
[1673235140432,0.00693693,17205.0,17204.0,1.738813]
[1673235140927,0.00693693,17205.0,17204.0,1.988813]
[1673235141436,3.693e-05,17205.0,17204.0,2.288813]
[1673235141674,0.00823453,17206.0,17205.0,0.97153032]
[1673235141919,0.00823453,17206.0,17205.0,2.08505132]
[1673235142657,0.01982215,17206.0,17205.0,2.38505132]
[1673235142905,0.00455123,17210.0,17207.0,0.05799]
[1673235143155,0.00455123,17210.0,17209.0,0.05799]
[1673235143929,0.00455123,17210.0,17209.0,1.0168073]
[1673235144179,0.00455123,17210.0,17209.0,1.3808863]
[1673235144431,0.00455123,17210.0,17209.0,2.22371424]
[1673235144697,0.00455123,17210.0,17209.0,2.74138901]
[1673235145223,0.00455123,17210.0,17209.0,2.75937816]
[1673235145454,0.00455123,17210.0,17209.0,2.1726235]
[1673235145694,0.00455123,17210.0,17209.0,2.5726235]
[1673235145938,0.00455123,17210.0,17209.0,3.20340564]
[1673235146434,0.24222912,17210.0,17209.0,2.28394214]
[1673235146699,0.00455123,17210.0,17209.0,1.30285114]
[1673235147206,0.00455123,17210.0,17209.0,0.93877214]
[1673235148202,0.00455123,17210.0,17209.0,1.70285114]
[1673235148699,0.00455123,17210.0,17209.0,1.30285114]
[1673235148946,0.00455123,17210.0,17209.0,0.93877214]
[1673235149180,0.00455123,17210.0,17209.0,1.30285114]
[1673235149675,0.00455123,17210.0,17209.0,0.93877214]
[1673235149928,0.00455123,17210.0,17209.0,1.30285114]
[1673235150966,0.00455123,17210.0,17209.0,0.93877214]
[1673235151273,0.00455123,17210.0,17209.0,1.88394214]
[1673235151480,0.00455123,17210.0,17209.0,2.28394214]
[1673235152215,0.00455123,17210.0,17209.0,1.88394214]
[1673235152473,0.00455123,17210.0,17209.0,1.51986314]
[1673235152965,0.00455123,17210.0,17209.0,1.88394214]
[1673235153966,0.00455123,17210.0,17209.0,1.51986314]
[1673235154466,0.00455123,17210.0,17209.0,1.88394214]
[1673235154750,0.00455123,17210.0,17209.0,2.46503314]
[1673235155033,0.00455123,17210.0,17209.0,0.672069]
[1673235155290,0.00455123,17210.0,17209.0,0.30799]
[1673235155552,0.58238142,17210.0,17209.0,0.30799]
[1673235155811,0.65498824,17210.0,17209.0,0.30799]
[1673235156070,0.58238142,17210.0,17209.0,0.30799]
[1673235156324,0.94646042,17210.0,17209.0,0.30799]
[1673235157335,0.92058142,17210.0,17209.0,0.30799]
[1673235157607,0.63038175,17210.0,17209.0,0.30799]
[1673235160645,0.99446075,17210.0,17209.0,0.30799]
[1673235160892,0.63038175,17210.0,17209.0,0.30799]
[1673235161414,0.99446075,17210.0,17209.0,0.30799]
[1673235161918,0.63038175,17210.0,17209.0,0.30799]
[1673235164231,0.99446075,17210.0,17209.0,0.30799]
[1673235164727,0.63038175,17210.0,17209.0,0.30799]
[1673235164996,0.99446075,17210.0,17209.0,0.30799]
[1673235166495,0.63038175,17210.0,17209.0,0.30799]
[1673235167488,0.99446075,17210.0,17209.0,0.30799]
[1673235168238,0.63038175,17210.0,17209.0,0.30799]
[1673235168746,0.99446075,17210.0,17209.0,0.30799]
[1673235169275,0.63038175,17210.0,17209.0,0.30799]
[1673235170276,0.99446075,17210.0,17209.0,0.30799]
[1673235171055,0.63038175,17210.0,17209.0,0.30799]
[1673235171304,0.99446075,17210.0,17209.0,0.30799]
[1673235171558,0.63038175,17210.0,17209.0,0.30799]
[1673235171827,0.34018351,17210.0,17209.0,0.30799]
[1673235172556,0.33018351,17210.0,17209.0,0.30799]
[1673235176742,0.44618203,17210.0,17209.0,0.30799]
[1673235178515,0.44618203,17210.0,17209.0,0.3085625]
[1673235178789,0.33018351,17210.0,17209.0,0.3085625]
[1673235179041,0.47135608,17210.0,17209.0,0.3085625]
[1673235180311,0.47135608,17210.0,17209.0,0.30799]
[1673235185432,0.33018351,17210.0,17209.0,0.30799]
[1673235185883,0.1691,17210.0,17209.0,0.30799]
[1673235186140,1.34745783,17211.0,17209.0,0.30799]
[1673235186394,1.45909671,17211.0,17209.0,0.30799]
[1673235188890,1.29009671,17211.0,17209.0,0.30799]
[1673235195085,1.29009671,17211.0,17210.0,0.62890096]
[1673235195337,0.89009671,17211.0,17210.0,1.05096996]
[1673235195586,0.1160274,17211.0,17210.0,1.05096996]
[1673235195846,0.1160274,17211.0,17210.0,1.30096996]
[1673235196095,0.1160274,17211.0,17210.0,0.93689096]
[1673235196350,0.1160274,17211.0,17210.0,1.30096996]
[1673235197604,0.1160274,17211.0,17210.0,0.93689096]
[1673235198113,0.10653432,17211.0,17210.0,0.93689096]
[1673235199896,0.10653432,17211.0,17210.0,0.93920877]
[1673235200148,0.10653432,17211.0,17210.0,1.30328777]
[1673235200407,0.14136931,17212.0,17210.0,0.93920877]
[1673235200669,1.70574206,17213.0,17212.0,0.05799]
[1673235200920,0.7161306,17213.0,17212.0,0.06030753]
[1673235201188,0.7161306,17213.0,17212.0,0.59261902]
[1673235201189,0.00566129,17213.0,17212.0,0.59261902]
[1673235201931,0.00566129,17213.0,17212.0,0.84261902]
[1673235202432,0.00566129,17213.0,17212.0,0.84030149]
[1673235203711,0.40566129,17213.0,17212.0,0.84041735]